bitfinex/quotes_ETHUSD_20220219
["timestamp","ask_amount","ask_price","bid_price","bid_amount"]
[1645308250206,1.82238,2746.4,2746.0,0.00301993]
[1645308250807,1.82238,2746.4,2745.7,1.54753942]
[1645308251010,1.82238,2746.4,2746.1,0.00303565]
[1645308252112,1.82238,2746.4,2745.7,1.54753942]
[1645308252312,1.82238,2746.4,2746.1,0.00303563]
[1645308252915,2.5249799,2746.7,2746.1,0.00303563]
[1645308252916,1.09159,2746.7,2746.1,0.00303563]
[1645308253120,2.1547456,2746.8,2746.1,0.00303563]
[1645308253121,1.2437,2746.8,2746.1,0.00303563]
[1645308253349,1.2437,2746.8,2745.9,2.24201337]
[1645308253552,1.2437,2746.8,2746.3,0.00303556]
[1645308254233,0.1807,2746.8,2746.3,0.00303556]
[1645308254239,0.1807,2746.8,2746.3,1.55057498]
[1645308254354,0.1807,2746.8,2746.4,1.54753942]
[1645308254555,0.91097,2746.7,2746.5,1.54753942]
[1645308254755,0.91097,2746.7,2746.4,0.00303442]
[1645308254958,0.91105,2746.5,2746.4,0.00303442]
[1645308255759,0.91105,2746.5,2746.0,1.54748659]
[1645308255957,0.91108,2746.4,2746.3,0.00303447]
[1645308256371,0.91108,2746.4,2746.3,1.55052106]
[1645308256758,0.91108,2746.4,2746.3,0.00303447]
[1645308256999,0.91108,2746.4,2745.8,1.54748659]
[1645308257201,0.91108,2746.4,2746.2,0.00303452]
[1645308257606,0.90137918,2746.4,2746.2,0.00303452]
[1645308258000,0.90137918,2746.4,2746.2,1.54748659]
[1645308258201,0.90137918,2746.4,2746.3,1.54748659]
[1645308258802,4.92337918,2746.4,2746.2,0.00303461]
[1645308259301,0.91122,2746.2,2745.5,1.54766672]
[1645308259503,0.9112,2746.0,2745.6,1.54766672]
[1645308259702,0.91122,2746.2,2746.0,0.73961788]
[1645308259901,0.91122,2746.2,2746.1,1.54766672]
[1645308261558,1.82242,2746.2,2746.1,1.54766672]
[1645308266507,0.9112,2746.2,2746.1,1.54766672]
[1645308267908,4.0,2746.1,2746.0,0.74265257]
[1645308268107,0.522,2746.1,2746.0,0.74265257]
[1645308268355,1.3572,2746.1,2746.0,0.74265257]
[1645308268954,1.86902614,2746.1,2746.0,0.73961788]
[1645308269355,1.3572,2746.1,2746.0,0.73961788]
[1645308270356,7.0,2746.0,2745.9,0.00303474]
[1645308270660,7.0,2746.0,2744.5,1.39074677]
[1645308270661,0.91149,2745.6,2744.8,5.43247395]
[1645308270858,2.73446,2745.7,2744.8,5.43247395]
[1645308270859,3.5,2745.5,2744.8,0.69447395]
[1645308271057,0.522,2745.7,2744.8,0.69447395]
[1645308271263,0.822,2745.7,2744.8,0.69447395]
[1645308271458,0.59150879,2745.6,2744.6,1.2415124]
[1645308271658,0.59150879,2745.6,2744.7,0.69447395]
[1645308271859,1.19150879,2745.6,2744.7,0.69447395]
[1645308272110,4.69150879,2745.6,2744.6,1.2415124]
[1645308272309,1.82314,2745.5,2744.6,1.2415124]
[1645308272510,0.522,2745.4,2744.6,1.2415124]
[1645308272709,0.91158,2745.3,2744.6,1.2415124]
[1645308272911,0.91158,2745.3,2744.6,0.69447395]
[1645308273612,1.82316,2745.3,2744.6,0.69447395]
[1645308274213,2.73476,2745.3,2744.6,0.69447395]
[1645308274413,0.9115968,2745.2,2744.6,0.69447395]
[1645308274624,0.91169,2745.0,2744.5,0.00339763]
[1645308274918,1.43369,2745.0,2744.5,0.00339763]
[1645308275116,1.43369,2745.0,2744.3,0.00339763]
[1645308275315,1.43369,2745.0,2744.0,0.69447395]
[1645308275316,8.71175,2744.9,2744.1,0.00339763]
[1645308275516,0.522,2744.8,2744.1,0.00339763]
[1645308275762,2.53174405,2744.7,2744.0,0.01214444]
[1645308275952,0.522,2744.6,2744.0,0.01214444]
[1645308276153,2.3459,2744.6,2743.8,0.00339763]
[1645308276954,3.2578575,2744.6,2743.8,0.00339763]
[1645308277155,1.8239,2744.5,2743.8,0.69787158]
[1645308277357,2.3459,2744.5,2743.8,0.00339763]
[1645308278256,0.9119011,2744.3,2743.8,0.00339763]
[1645308278656,0.91189,2744.1,2743.8,0.00339763]
[1645308279256,2.73569,2744.1,2743.8,0.00339763]
[1645308279709,1.08383139,2744.1,2743.8,0.00339763]
[1645308279911,1.08383139,2744.1,2743.8,0.00665374]
[1645308280912,1.08383139,2744.1,2743.8,0.00339763]
[1645308281112,1.08383139,2744.1,2743.8,0.00665374]
[1645308282011,1.08383139,2744.1,2743.8,0.00339763]
[1645308282314,1.08383139,2744.1,2743.8,0.00665374]
[1645308283354,1.08383139,2744.1,2743.8,0.00339763]
[1645308283557,1.08383139,2744.1,2743.8,0.00665374]
[1645308284556,1.08383139,2744.1,2743.8,0.00339763]
[1645308284756,1.08383139,2744.1,2743.8,0.00665374]
[1645308285755,1.08383139,2744.1,2743.8,0.00339763]
[1645308288213,1.08383139,2744.1,2743.8,1.55211987]
[1645308288415,1.08383139,2744.1,2743.8,0.00665142]
[1645308288416,3.5,2744.0,2743.8,0.00665142]
[1645308288612,1.08383139,2744.1,2743.8,0.00665142]
[1645308289212,1.08383139,2744.1,2743.8,0.00339763]
[1645308289616,1.08383139,2744.1,2743.8,0.00665142]
[1645308290513,1.08383139,2744.1,2743.8,0.00339763]
[1645308290755,1.08383139,2744.1,2743.8,0.00665142]
[1645308291756,1.08383139,2744.1,2743.8,0.00339763]
[1645308291959,1.08383139,2744.1,2743.8,1.55550602]
[1645308292156,1.08383139,2744.1,2743.8,0.00665142]
[1645308292955,1.08383139,2744.1,2743.8,0.00339763]
[1645308293156,1.08383139,2744.1,2743.8,0.00665142]
[1645308294158,1.08383139,2744.1,2743.8,0.00339763]
[1645308294616,0.91189,2744.1,2743.8,1.55544463]
[1645308294809,0.91189,2744.1,2743.8,0.00665142]
[1645308295209,0.91189,2744.1,2743.9,1.54876456]
[1645308295612,0.91189,2744.1,2743.8,0.00665142]
[1645308295909,0.91189,2744.1,2743.9,1.54876598]
[1645308296712,0.91189,2744.1,2743.9,0.00325377]
[1645308297314,0.91189,2744.1,2743.9,1.55200691]
[1645308297714,0.91189,2744.1,2743.9,1.54875314]
[1645308298015,0.91189,2744.1,2743.9,0.00325377]
[1645308298455,0.91189,2744.1,2743.9,1.5520065]
[1645308298654,2.73571,2744.1,2743.9,0.00325377]
[1645308299055,2.73571,2744.1,2743.8,0.00339763]
[1645308299257,2.73571,2744.1,2743.9,0.00301858]
[1645308299455,2.73571,2744.1,2743.9,1.55178395]
[1645308299858,1.08368627,2744.1,2743.9,0.00301858]
[1645308300058,1.08368627,2744.1,2743.8,0.00339763]
[1645308300460,1.08368627,2744.1,2743.9,0.00301858]
[1645308300461,3.5,2744.0,2743.9,0.00301858]
[1645308300661,4.022,2744.0,2743.9,0.00301858]
[1645308300861,5.022,2744.0,2743.9,0.00301858]
[1645308301259,5.022,2744.0,2743.8,0.00339763]
[1645308301459,0.91218,2743.8,2743.7,1.00339763]
[1645308301661,4.41218,2743.8,2743.7,0.00339763]
[1645308301863,4.0,2743.7,2743.4,0.01207623]
[1645308302109,4.022,2743.6,2743.4,0.01207623]
[1645308302311,1.824,2743.5,2743.4,0.01207623]
[1645308302505,2.346,2743.5,2743.4,0.01207623]
[1645308302705,0.9122754,2743.0,2742.4,0.00344288]
[1645308302908,0.9122754,2743.0,2742.4,1.55272065]
[1645308303206,0.91228,2742.9,2742.5,1.54927777]
[1645308303407,0.91228,2742.9,2742.6,1.54927777]
[1645308303607,0.91228,2742.9,2742.3,0.00344288]
[1645308303608,0.91228,2742.9,2742.7,1.54927777]
[1645308303808,2.7369562,2742.9,2742.3,0.00344288]
[1645308304007,1.8246762,2742.9,2742.0,1.54950407]
[1645308304206,0.91243,2742.7,2742.6,0.00293527]
[1645308304408,2.73723,2742.7,2742.6,0.00293527]
[1645308304813,2.73719,2742.8,2742.6,0.00293527]
[1645308305008,2.73719,2742.8,2742.5,1.54950407]
[1645308305009,0.91239,2742.8,2742.5,1.54950407]
[1645308305310,0.91228,2742.9,2742.6,1.54950407]
[1645308305515,0.91228,2742.9,2742.7,1.54950407]
[1645308305788,0.91228,2742.9,2742.5,0.00293531]
[1645308306170,0.91228,2742.9,2742.2,0.00344288]
[1645308306171,1.82452,2742.9,2742.2,0.00344288]
[1645308306370,1.82452,2742.9,2742.3,1.5495141]
[1645308306569,1.82452,2742.9,2742.6,0.00293529]
[1645308307375,7.1493688,2742.9,2742.4,0.00344288]
[1645308307571,1.8249,2742.7,2742.4,0.00344288]
[1645308307769,1.8249,2742.7,2742.6,0.00283298]
[1645308307770,4.862236,2742.7,2742.6,0.00283298]
[1645308308172,5.384236,2742.7,2742.6,0.00283298]
[1645308308574,5.384236,2742.7,2742.4,1.5495141]
[1645308308772,5.384236,2742.7,2742.3,0.00344288]
[1645308308773,6.296696,2742.7,2742.5,1.5495141]
[1645308308973,6.596696,2742.7,2742.6,1.5495141]
[1645308309174,5.684236,2742.7,2742.6,1.5495141]
[1645308309507,6.684236,2742.7,2742.6,1.5495141]
[1645308309914,0.912498,2742.4,2741.9,0.00344288]
[1645308310209,0.912498,2742.4,2742.1,0.01133377]
[1645308310210,0.91252,2742.2,2742.1,0.01133377]
[1645308311009,0.91252,2742.2,2741.8,0.69791683]
[1645308311311,0.91252,2742.2,2742.0,0.00284355]
[1645308312313,0.91252,2742.2,2741.8,0.00344288]
[1645308312516,0.91252,2742.2,2742.1,0.51655214]
[1645308312517,0.25825904,2742.2,2742.1,0.51655214]
[1645308313012,0.25825904,2742.2,2742.0,0.00284358]
[1645308313013,3.75825904,2742.2,2742.0,0.00284358]
[1645308313263,0.522,2742.1,2742.0,0.00284358]
[1645308313453,0.522,2742.1,2741.7,0.00344288]
[1645308313654,2.34737,2742.1,2741.7,0.00344288]
[1645308314255,2.34737,2742.1,2741.5,0.69447395]
[1645308314454,0.91271,2741.9,2741.6,0.69791683]
[1645308314655,2.73812,2741.9,2741.6,0.69447395]
[1645308314853,2.73812,2741.9,2741.6,0.69791683]
[1645308315058,2.73812,2741.9,2741.7,0.00284536]
[1645308315254,3.65083,2741.9,2741.7,0.69731931]
[1645308315456,4.5635324,2741.9,2741.7,0.69731931]
[1645308315656,4.5635324,2741.9,2741.7,0.00284536]
[1645308315856,4.5635324,2741.9,2741.6,0.69447395]
[1645308316056,4.5635324,2741.9,2741.7,0.00284536]
[1645308316858,4.5635324,2741.9,2741.7,0.69731931]
[1645308317109,4.5635324,2741.9,2741.8,0.3099747]
[1645308317915,0.91271,2741.9,2741.8,0.3099747]
[1645308318212,1.82518,2742.1,2741.8,0.3099747]
[1645308318413,2.12518,2742.1,2741.8,0.3099747]
[1645308319411,1.82518,2742.1,2741.8,0.3099747]
[1645308319610,1.82518,2742.1,2741.8,0.31282003]
[1645308319813,0.17200174,2742.1,2741.8,0.31282003]
[1645308320509,0.17200174,2742.1,2741.8,0.3099747]
[1645308320773,0.17200174,2742.1,2741.8,0.31282003]
[1645308321159,1.08468174,2742.1,2741.8,0.31282003]
[1645308321761,1.08468174,2742.1,2741.8,0.3099747]
[1645308321962,1.08468174,2742.1,2741.8,0.31282002]
[1645308322764,1.08468174,2742.1,2741.8,1.00729397]
[1645308322969,1.08468174,2742.1,2742.0,0.3099747]
[1645308329355,3.64904,2742.4,2742.0,0.89508175]
[1645308329556,3.0119,2742.7,2742.0,0.89852463]
[1645308329756,3.05147,2742.8,2742.1,0.00344288]
[1645308329958,3.05147,2742.8,2742.2,0.3099747]
[1645308330153,1.2267,2742.8,2742.3,0.00344288]
[1645308330354,1.8613,2743.3,2742.4,0.3099747]
[1645308330355,3.1854,2743.2,2742.4,0.3099747]
[1645308330556,0.91221,2743.1,2742.6,0.3099747]
[1645308330758,0.91221,2743.1,2742.8,0.3099747]
[1645308330955,0.91221,2743.1,2743.0,0.3099747]
[1645308333516,1.82445,2743.1,2743.0,0.3099747]
[1645308340107,6.72979,2743.4,2743.0,0.3099747]
[1645308340108,4.9053,2743.4,2743.0,0.3099747]
[1645308340310,3.9932,2743.4,2743.0,0.3099747]
[1645308340906,1.2193,2743.4,2743.0,0.3099747]
[1645308341308,1.2193,2743.4,2743.1,0.00284476]
[1645308341509,2.13137,2743.4,2743.1,0.00284476]
[1645308342308,2.13137,2743.4,2743.0,0.3099747]
[1645308342508,2.13137,2743.4,2743.1,0.00284473]
[1645308343455,2.13137,2743.4,2743.0,0.3099747]
[1645308343658,2.13137,2743.4,2743.1,0.31281942]
[1645308344154,2.13137,2743.4,2743.1,0.31173583]
[1645308344355,3.13137,2743.4,2743.1,0.31173583]
[1645308344556,0.9122234,2743.3,2743.1,0.3099747]
[1645308344757,2.65337,2743.4,2743.1,0.3099747]
[1645308345456,2.65337,2743.4,2743.3,0.3099747]
[1645308345656,0.91207,2743.4,2743.3,0.3099747]
[1645308348419,5.0682446,2743.4,2743.3,0.3099747]
[1645308348614,5.0682446,2743.4,2743.2,0.00325677]
[1645308348615,4.0,2743.3,2743.2,0.00325677]
[1645308348818,5.8467373,2743.3,2743.2,0.00325677]
[1645308349512,0.9124,2743.1,2742.4,0.00344288]
[1645308349712,3.6495804,2743.0,2742.7,0.01302919]
[1645308349913,3.5995804,2743.0,2742.9,0.7860253]
[1645308352761,2.13964,2743.3,2742.9,2.33552442]
[1645308352957,0.522,2743.5,2742.9,0.7860253]
[1645308353158,0.522,2743.5,2743.1,0.7860253]
[1645308353961,1.4341,2743.5,2743.1,0.7860253]
[1645308354609,1.4341,2743.5,2743.2,0.00325678]
[1645308355206,1.4341,2743.5,2743.2,0.78928208]
[1645308355407,1.4341,2743.5,2743.2,0.7860253]
[1645308355811,1.4341,2743.5,2743.2,0.78928207]
[1645308356613,0.9121,2743.5,2743.2,0.7860253]
[1645308356908,0.9121,2743.5,2743.4,0.7860253]
[1645308357707,1.5397166,2743.5,2743.4,0.7860253]
[1645308360365,0.9121,2743.5,2743.4,0.7860253]
[1645308369807,0.9121,2743.5,2743.2,0.0028245]
[1645308370009,0.91214,2743.3,2743.1,0.7860253]
[1645308370208,0.91214,2743.3,2743.2,2.33817616]
[1645308371008,0.91214,2743.3,2743.2,2.33534442]
[1645308372014,0.91214,2743.3,2743.2,2.28534442]
[1645308377011,0.91214,2743.3,2743.2,0.7860253]
[1645308377217,4.41214,2743.3,2743.2,0.7860253]
[1645308377411,0.91214,2743.3,2743.2,0.7860253]
[1645308380114,1.824,2743.4,2743.2,0.7860253]
[1645308380314,1.82416,2743.7,2743.2,0.7860253]
[1645308380517,3.91408,2743.8,2743.2,0.7860253]
[1645308380764,2.73598,2743.8,2743.2,0.7860253]
[1645308380964,2.73598,2743.8,2743.2,0.78887006]
[1645308381962,2.73598,2743.8,2743.2,0.7860253]
[1645308382165,2.73598,2743.8,2743.2,0.00284478]
[1645308382965,0.91201,2743.6,2743.2,0.00284478]
[1645308383167,0.91201,2743.6,2743.1,0.7860253]
[1645308383366,1.8241,2743.6,2743.2,0.00284478]
[1645308384267,1.8241,2743.6,2743.1,0.7860253]
[1645308384268,1.82433,2743.5,2743.1,0.7860253]
[1645308384506,3.64865,2743.5,2743.2,0.00284471]
[1645308384707,0.91215,2743.4,2743.2,0.00284471]
[1645308385510,0.91215,2743.4,2743.1,0.7860253]
[1645308385707,0.81215,2743.4,2743.2,0.00284469]
[1645308386710,0.81215,2743.4,2743.1,0.7860253]
[1645308386910,0.81215,2743.4,2743.2,0.00284469]
[1645308387110,0.81215,2743.4,2743.2,0.78886999]
[1645308387911,0.81215,2743.4,2743.2,0.7860253]
[1645308388110,0.81215,2743.4,2743.2,0.78886999]
[1645308389160,0.81215,2743.4,2743.2,0.7860253]
[1645308389363,0.81215,2743.4,2743.2,0.78887]
[1645308390069,1.43409,2743.6,2743.2,0.78887]
[1645308390363,0.91209,2743.6,2743.2,0.7860253]
[1645308390665,0.91209,2743.6,2743.2,0.78887]
[1645308391466,0.91209,2743.6,2743.2,0.7860253]
[1645308391864,0.91209,2743.6,2743.2,0.78887002]
[1645308392111,0.91209,2743.6,2743.4,0.7860253]
[1645308392311,0.91209,2743.6,2743.2,0.00284472]
[1645308392718,0.91209,2743.6,2743.1,0.7860253]
[1645308392914,0.91212,2743.5,2743.3,0.7860253]
[1645308393213,0.91212,2743.5,2743.4,2.33531291]
[1645308394416,0.91212,2743.5,2743.4,0.7860253]
[1645308395015,0.91212,2743.5,2743.4,2.33531092]
[1645308397770,1.21212,2743.5,2743.4,0.7860253]
[1645308398163,1.73412,2743.5,2743.4,0.7860253]
[1645308398960,3.55812,2743.5,2743.4,0.7860253]
[1645308402606,3.55812,2743.5,2743.2,0.00284474]
[1645308402813,1.824,2743.4,2743.2,0.00284474]
[1645308403108,0.522,2743.3,2743.2,0.00284474]
[1645308403562,0.522,2743.3,2743.1,0.7860253]
[1645308403758,0.91221,2743.2,2743.1,0.78887001]
[1645308403960,1.43421,2743.2,2743.1,0.78887001]
[1645308404157,1.43421,2743.2,2743.1,2.33830725]
[1645308404757,1.43421,2743.2,2743.1,2.33546254]
[1645308406861,0.91221,2743.2,2743.1,2.33546254]
[1645308407307,0.91221,2743.2,2743.1,2.27329254]
[1645308407910,0.91221,2743.2,2743.1,2.27237254]
[1645308408107,0.91221,2743.2,2743.1,0.7229353]
[1645308408306,0.91221,2743.2,2743.1,0.4195453]
[1645308409107,0.91221,2743.2,2743.1,1.96896061]
[1645308410009,0.91221,2743.2,2743.1,1.92389061]
[1645308411559,0.91221,2743.2,2743.1,0.3744753]
[1645308411759,0.91221,2743.2,2743.1,1.92391277]
[1645308411959,0.91221,2743.2,2743.1,1.92388783]
[1645308416010,0.91221,2743.2,2743.1,0.3744753]
[1645308416912,0.91221,2743.2,2743.1,1.92395171]
[1645308417712,1.43421,2743.2,2743.1,1.92395171]
[1645308419257,1.43421,2743.2,2743.1,0.3744753]
[1645308419458,1.43421,2743.2,2743.1,1.92390451]
[1645308420462,1.43421,2743.2,2743.1,0.3744753]
[1645308421265,1.43421,2743.2,2743.1,1.92391842]
[1645308421468,1.824,2743.3,2743.1,1.92391842]
[1645308421666,1.824,2743.3,2742.6,4.18439934]
[1645308421667,0.91208,2743.5,2743.2,1.92391842]
[1645308421863,0.91208,2743.5,2742.6,4.18439934]
[1645308421864,0.91208,2743.5,2743.4,0.3744753]
[1645308423109,0.91208,2743.5,2743.4,1.92374822]
[1645308425012,0.91208,2743.5,2743.4,0.3744753]
[1645308426570,0.91208,2743.5,2743.4,1.92377241]
[1645308426971,0.91208,2743.5,2743.4,0.3744753]
[1645308427376,0.91208,2743.5,2743.4,1.92375507]
[1645308427772,0.91208,2743.5,2743.4,0.3744753]
[1645308428571,1.43408,2743.5,2743.4,0.3744753]
[1645308434164,1.43408,2743.5,2743.4,0.37358634]
[1645308434760,1.62413751,2743.5,2743.4,0.37358634]
[1645308435160,2.22413751,2743.5,2743.4,0.37358634]
[1645308436061,3.22413751,2743.5,2743.4,0.37358634]
[1645308440520,1.62413751,2743.5,2743.4,0.37358634]
[1645308440776,1.82439,2743.9,2743.4,0.37358634]
[1645308440777,2.85789304,2744.0,2743.4,3.87358634]
[1645308440964,1.82365,2744.5,2743.6,0.37358634]
[1645308441163,1.82365,2744.5,2743.8,0.37358634]
[1645308441364,0.50646279,2744.7,2744.0,0.37358634]
[1645308441763,1.09530679,2744.7,2744.0,0.37358634]
[1645308441964,1.09530679,2744.7,2744.2,0.37358634]
[1645308441965,0.91175,2744.5,2744.2,0.37358634]
[1645308443564,0.91178,2744.4,2744.2,0.37358634]
[1645308444627,1.21178,2744.4,2744.2,0.37358634]
[1645308444830,4.85778,2744.4,2744.2,0.37358634]
[1645308446421,0.9119324,2744.3,2744.2,0.37358634]
[1645308446823,0.3,2744.3,2744.2,0.37358634]
[1645308447023,2.43378,2744.4,2744.2,0.37358634]
[1645308447222,1.73378,2744.4,2744.2,0.37358634]
[1645308447427,1.21178,2744.4,2744.2,0.37358634]
[1645308447625,2.1236327,2744.4,2744.2,0.37358634]
[1645308447925,1.21178,2744.4,2744.2,0.37358634]
[1645308451766,2.1236309,2744.4,2744.2,0.37358634]
[1645308452010,2.9456309,2744.4,2744.2,0.37358634]
[1645308452212,1.82419,2744.1,2743.3,4.2992]
[1645308452411,0.522,2744.0,2743.4,1.5491401]
[1645308452716,1.822,2744.0,2743.1,0.02724548]
[1645308452914,1.822,2744.0,2743.2,0.01422448]
[1645308452915,1.55447526,2743.6,2743.2,0.01422448]
[1645308453111,2.07647526,2743.6,2743.2,0.01422448]
[1645308453313,2.7368,2743.5,2743.2,0.01422448]
[1645308453513,0.522,2743.4,2743.2,0.01422448]
[1645308453914,0.522,2743.4,2742.5,0.00344338]
[1645308454114,0.9123888,2743.2,2742.5,1.55290353]
[1645308454314,0.9123888,2743.2,2742.8,0.01138028]
[1645308454514,0.9123888,2743.2,2742.9,1.54946015]
[1645308455115,0.9123888,2743.2,2742.3,0.00344338]
[1645308455116,1.82468,2743.0,2742.3,0.00344338]
[1645308455318,1.82468,2743.0,2742.3,1.55293101]
[1645308455515,3.6493747,2743.0,2742.9,0.0028469]
[1645308456358,3.6493747,2743.0,2742.6,1.54948763]
[1645308456559,3.6493747,2743.0,2742.8,0.00284694]
[1645308456759,1.08437951,2743.0,2742.8,1.55233457]
[1645308456960,1.8247775,2743.3,2742.9,5.04948763]
[1645308456961,0.91213,2743.3,2742.9,5.04948763]
[1645308457160,0.91213,2743.3,2743.0,1.54948763]
[1645308457359,0.91213,2743.3,2743.1,1.54948763]
[1645308457560,0.91213,2743.3,2743.2,1.54948763]
[1645308458161,0.91213,2743.3,2743.0,0.00284683]
[1645308458761,0.91213,2743.3,2743.0,3.5]
[1645308458965,0.91213,2743.3,2743.1,1.54948763]
[1645308459363,0.91213,2743.3,2743.2,1.54948763]
[1645308459615,0.91213,2743.3,2743.0,0.00284683]
[1645308460010,0.91213,2743.3,2742.9,1.54948763]
[1645308460209,0.91213,2743.3,2743.0,3.50284455]
[1645308460411,0.91213,2743.3,2743.1,1.54948763]
[1645308460623,1.43404,2743.6,2743.1,1.54948763]
[1645308460813,0.522,2743.6,2743.2,1.54948763]
[1645308461015,0.522,2743.6,2743.0,0.00284455]
[1645308461214,0.522,2743.6,2743.0,0.59193542]
[1645308461414,0.522,2743.6,2743.2,0.00284451]
[1645308462214,2.34629,2743.6,2743.2,0.00284451]
[1645308462414,2.34629,2743.6,2743.1,1.54948763]
[1645308462615,2.34629,2743.6,2743.2,0.00284451]
[1645308462616,0.91217,2743.5,2743.2,0.00284451]
[1645308463465,0.91217,2743.5,2743.0,1.54928481]
[1645308463866,0.91217,2743.5,2743.2,0.00284463]
[1645308464265,1.82435,2743.5,2743.2,0.00284463]
[1645308464765,1.82435,2743.5,2743.0,1.54928481]
[1645308464966,1.82435,2743.5,2743.2,0.0028447]
[1645308465968,1.82435,2743.5,2743.0,1.54928481]
[1645308466170,2.73649,2743.5,2743.2,0.0028447]
[1645308467217,2.73649,2743.5,2743.2,1.54928481]
[1645308467415,2.73649,2743.5,2743.2,0.00284469]
[1645308467416,1.82442,2743.4,2743.2,0.00284469]
[1645308468420,1.82442,2743.4,2742.9,1.54930355]
[1645308468623,1.82442,2743.4,2743.2,0.00284469]
[1645308469018,1.82442,2743.4,2743.2,1.55214824]
[1645308469222,1.82442,2743.4,2743.3,1.54930355]
[1645308469418,1.82442,2743.4,2743.2,0.00284469]
[1645308469619,1.82442,2743.4,2742.9,1.54931763]
[1645308469818,1.82442,2743.4,2743.2,0.00284468]
[1645308470419,1.82442,2743.4,2743.2,1.55216231]
[1645308470618,1.82442,2743.4,2743.2,0.00284468]
[1645308470870,1.82442,2743.4,2742.9,1.54926439]
[1645308471078,1.82442,2743.4,2743.2,0.00284469]
[1645308471870,1.82442,2743.4,2742.9,1.54926439]
[1645308472071,1.82442,2743.4,2743.0,1.54926439]
[1645308472272,1.82442,2743.4,2743.2,0.00284469]
[1645308473072,1.82442,2743.4,2743.2,1.5493022]
[1645308473373,1.82442,2743.4,2743.2,0.00284469]
[1645308474374,1.82442,2743.4,2742.9,1.54927225]
[1645308474628,1.82442,2743.4,2742.7,3.5]
[1645308474629,2.736624,2743.4,2743.2,0.00284469]
[1645308475426,0.9122,2743.3,2743.2,0.00284469]
[1645308475625,0.9122,2743.3,2742.9,1.54927225]
[1645308475826,0.9122,2743.3,2743.2,0.0028447]
[1645308476827,0.9122,2743.3,2742.9,1.54927225]
[1645308477127,0.9122,2743.3,2743.1,0.00284472]
[1645308477927,0.9122,2743.3,2742.8,1.54927225]
[1645308478130,0.9122,2743.3,2743.1,0.00284474]
[1645308479175,0.9122,2743.3,2742.8,1.54927225]
[1645308479380,0.9122,2743.3,2743.1,0.00284474]
[1645308479577,0.9122,2743.3,2743.1,0.00168217]
[1645308480380,0.9122,2743.3,2742.8,1.54927225]
[1645308480381,1.2122,2743.3,2742.8,1.54927225]
[1645308480678,1.2122,2743.3,2742.9,1.54927225]
[1645308480679,2.73692,2743.2,2742.9,1.54927225]
[1645308480879,0.9123003,2743.1,2742.6,0.00344338]
[1645308481076,1.82462,2743.0,2742.6,0.00344338]
[1645308481284,1.82462,2743.0,2742.4,1.55290955]
[1645308481482,1.82462,2743.0,2742.6,3.5]
[1645308481681,0.3,2743.3,2742.7,1.54946617]
[1645308481880,0.3,2743.3,2742.8,3.5]
[1645308482126,0.3,2743.3,2742.9,1.54946617]
[1645308482127,0.91214,2743.3,2742.9,1.54946617]
[1645308482428,0.91214,2743.3,2743.0,3.5]
[1645308482725,0.91214,2743.3,2743.1,1.54946617]
[1645308483224,0.91214,2743.3,2743.2,1.54946617]
[1645308483425,0.91214,2743.4,2743.2,1.54946617]
[1645308483628,0.91214,2743.4,2743.3,1.54946617]
[1645308484027,0.91214,2743.4,2742.9,1.54946617]
[1645308484229,0.91214,2743.4,2743.0,3.50306023]
[1645308484431,0.91214,2743.4,2743.1,1.54946617]
[1645308484628,0.91214,2743.4,2743.2,1.54946617]
[1645308484830,0.91214,2743.4,2743.3,1.54946617]
[1645308485036,0.91214,2743.4,2743.0,0.00306023]
[1645308485232,0.91214,2743.4,2742.9,1.54946617]
[1645308485431,0.91214,2743.4,2743.0,1.55251826]
[1645308485769,0.91214,2743.4,2743.1,1.54946617]
[1645308485961,0.91214,2743.4,2743.2,1.54946617]
[1645308486162,0.91214,2743.4,2743.3,1.54946617]
[1645308486367,0.91214,2743.4,2743.0,0.00305209]
[1645308486368,0.91214,2743.4,2742.9,1.54946617]
[1645308486564,0.91214,2743.4,2743.0,1.55251823]
[1645308486763,0.91214,2743.4,2743.1,1.54946617]
[1645308487062,0.91214,2743.4,2743.2,1.54946617]
[1645308487462,0.91214,2743.4,2743.3,1.54946617]
[1645308487665,0.91214,2743.4,2742.7,2.24394012]
[1645308487863,0.91213,2743.3,2743.0,0.00305206]
[1645308488663,0.91213,2743.3,2742.9,1.54946617]
[1645308489065,0.91213,2743.3,2743.0,0.0030525]
[1645308489265,0.91213,2743.3,2743.2,0.61621726]
[1645308489511,1.82424,2743.6,2743.3,1.6524312]
[1645308489512,0.91204,2743.6,2743.3,1.6524312]
[1645308489711,0.91204,2743.6,2743.4,1.54946617]
[1645308493379,5.4728,2743.7,2743.5,3.39195845]
[1645308493380,0.91203,2743.7,2743.5,3.39195845]
[1645308493582,2.00382,2744.1,2743.6,1.54946617]
[1645308493583,0.9119,2744.1,2743.6,1.54946617]
[1645308493878,1.1565,2744.2,2743.7,1.54946617]
[1645308494082,1.1565,2744.2,2743.8,1.54946617]
[1645308494284,2.7392,2744.4,2743.9,1.54946617]
[1645308494478,2.7392,2744.4,2743.3,6.92416772]
[1645308494479,2.7392,2744.4,2744.0,1.54946617]
[1645308494777,1.2059,2744.4,2744.1,1.54946617]
[1645308495081,5.08646279,2744.5,2744.2,1.54880411]
[1645308495082,0.00646279,2744.5,2744.2,1.54880411]
[1645308495386,0.9117,2744.6,2744.3,1.54880411]
[1645308495387,0.00646279,2744.6,2744.3,1.54880411]
[1645308495682,0.00646279,2744.8,2744.4,1.54880411]
[1645308495878,0.00646279,2744.8,2743.8,4.14378769]
[1645308495879,0.00646279,2744.8,2743.8,3.44931374]
[1645308496082,0.00646279,2744.8,2743.9,1.5486114]
[1645308496279,0.91808279,2744.8,2743.9,1.5486114]
[1645308497015,1.82970279,2744.8,2744.0,1.5486114]
[1645308497314,1.82970279,2744.8,2743.8,3.45023516]
[1645308497315,1.82970279,2744.8,2744.1,1.5486114]
[1645308497514,1.82970279,2744.8,2744.2,1.5486114]
[1645308497715,1.82970279,2744.8,2744.3,1.5486114]
[1645308497915,1.82970279,2744.8,2743.8,3.45023516]
[1645308498113,1.82970279,2744.8,2743.9,1.54864847]
[1645308498114,3.07220279,2744.8,2743.9,1.54864847]
[1645308501169,3.07220279,2744.8,2744.0,1.54864847]
[1645308501369,3.07220279,2744.8,2744.1,1.54864847]
[1645308501567,3.07220279,2744.8,2744.2,1.54864847]
[1645308501768,3.07220279,2744.8,2743.6,1.2358]
[1645308501971,3.07220279,2744.8,2743.7,1.5486644]